fUST/lending_fUST_20251110
["ID","MTS","AMOUNT","RATE_DAILY","PERIOD"]
[393497009,1762726248016,-151.0,0.000248,7]
[393497010,1762726248026,-151.0,0.000248,7]
[393497011,1762726248036,-151.0,0.000248,7]
[393497012,1762726248045,-151.0,0.000248,7]
[393497013,1762726248054,-257.227709,0.000248,7]
[393497014,1762726248063,-151.0,0.000248,7]
[393497015,1762726248072,-151.0,0.000248,7]
[393497016,1762726248082,-151.0,0.000248,7]
[393497017,1762726248091,-151.0,0.000248,7]
[393497018,1762726248100,-151.0,0.000248,7]
[393497019,1762726248109,-151.0,0.000248,7]
[393497020,1762726248119,-151.0,0.000248,7]
[393497021,1762726248128,-151.0,0.000248,7]
[393497022,1762726248138,-32460.0315783,0.000248,2]
[393497023,1762726248147,-151.0,0.000248,7]
[393497024,1762726248157,-151.0,0.000248,7]
[393497025,1762726248166,-151.0,0.000248,7]
[393497026,1762726248176,-151.0,0.000248,7]
[393497027,1762726248186,-151.0,0.000248,7]
[393497028,1762726248195,-151.0,0.000248,7]
[393497029,1762726248204,-151.0,0.000248,7]
[393497030,1762726248214,-151.0,0.000248,7]
[393497031,1762726248224,-151.0,0.000248,7]
[393497032,1762726248235,-151.0,0.000248,7]
[393497033,1762726248244,-151.0,0.000248,7]
[393497034,1762726248254,-151.0,0.000248,7]
[393497035,1762726248263,-151.0,0.000248,7]
[393497036,1762726248273,-240.709634,0.000248,7]
[393497037,1762726248282,-151.0,0.000248,7]
[393497038,1762726248292,-151.0,0.000248,7]
[393497039,1762726248302,-160.0,0.00024839,2]
[393497040,1762726248312,-160.0,0.00024849,2]
[393497041,1762726248321,-160.0,0.00024849,2]
[393497042,1762726248331,-399.90919747,0.00024849,2]
[393497043,1762726248340,-160.0,0.0002485,2]
[393497044,1762726248350,-399.90919747,0.000249,7]
[393497045,1762726248359,-151.0,0.000249,7]
[393497046,1762726248368,-151.0,0.000249,7]
[393497047,1762726248378,-151.0,0.000249,7]
[393497048,1762726248388,-267.79785,0.000249,7]
[393497049,1762726248397,-151.0,0.000249,7]
[393497050,1762726248407,-241.536368,0.000249,2]
[393497051,1762726248416,-245.630979,0.000249,7]
[393497052,1762726248425,-151.0,0.000249,7]
[393497053,1762726248434,-155.909557,0.000249,7]
[393497054,1762726248443,-151.0,0.000249,7]
[393497055,1762726248452,-153.018556,0.000249,7]
[393497056,1762726248461,-153.018556,0.000249,7]
[393497057,1762726248471,-153.018556,0.000249,7]
[393497058,1762726248479,-153.018556,0.000249,7]
[393497059,1762726248486,-151.0,0.000249,7]
[393497060,1762726248494,-151.0,0.000249,7]
[393497061,1762726248501,-151.0,0.000249,7]
[393497062,1762726248509,-151.0,0.000249,7]
[393497063,1762726248516,-151.0,0.000249,7]
[393497064,1762726248523,-151.0,0.000249,7]
[393497065,1762726248531,-151.0,0.000249,7]
[393497066,1762726248540,-151.0,0.000249,7]
[393497067,1762726248550,-151.0,0.000249,7]
[393497068,1762726248559,-151.0,0.000249,7]
[393497069,1762726248569,-151.0,0.000249,7]
[393497070,1762726248579,-260.13265456,0.000249,7]
[393497071,1762726248588,-151.0,0.000249,7]
[393497072,1762726248598,-151.0,0.000249,7]
[393497073,1762726248607,-151.0,0.000249,7]
[393497074,1762726248616,-151.0,0.000249,7]
[393497075,1762726248625,-163.385607,0.000249,7]
[393497076,1762726248634,-151.0,0.000249,7]
[393497077,1762726248644,-151.0,0.000249,7]
[393497078,1762726248653,-151.0,0.000249,7]
[393497079,1762726248663,-151.0,0.000249,7]
[393497080,1762726248672,-151.0,0.000249,7]
[393497081,1762726248681,-151.0,0.000249,7]
[393497082,1762726248690,-151.0,0.000249,7]
[393497083,1762726248700,-151.0,0.000249,7]
[393497084,1762726248709,-151.0,0.000249,7]
[393497085,1762726248718,-151.0,0.000249,7]
[393497086,1762726248728,-21024.3630427,0.000249,2]
[393497087,1762726248737,-151.0,0.000249,7]
[393497088,1762726248745,-151.0,0.000249,7]
[393497089,1762726248755,-151.0,0.000249,7]
[393497090,1762726248764,-151.0,0.000249,7]
[393497091,1762726248773,-160.0,0.00024938,2]
[393497092,1762726248782,-1155.76151907,0.00025207,2]
[393497093,1762726248792,-260.0,0.00025486,2]
[393497094,1762726248801,-1152.0,0.00025491,2]
[393497095,1762726248811,-532.669663,0.00025906,2]
[393497096,1762726248820,-258.0,0.00025985,2]
[393497097,1762726248830,-3430.99,0.00026,7]
[393497098,1762726248839,-360.0,0.00026034,2]
[393497099,1762726248853,-1068.70536009,0.00026043,2]
[393497100,1762726248862,-238.72338416,0.00026177,2]
[393497101,1762726248872,-150.0,0.00026477,2]
[393497102,1762726248881,-2166.0,0.00026487,2]
[393497103,1762726248893,-628.0,0.00026487,2]
[393497104,1762726248903,-986.0,0.00026487,2]
[393497105,1762726248912,-441.835,0.00026487,2]
[393497106,1762726248924,-4411.0,0.00026487,2]
[393497107,1762726248934,-460.0,0.00026582,2]
[393497108,1762726248943,-522.165682,0.00026676,2]
[393497109,1762726248952,-1155.76151907,0.00026772,3]
[393497110,1762726248962,-152.0,0.00027,7]
[393497111,1762726248971,-250.0,0.00027081,2]
[393497112,1762726248981,-250.0,0.00027081,2]
[393497113,1762726248990,-216.238,0.00027081,2]
[393497114,1762726248999,-151.431,0.00027081,2]
[393497115,1762726249009,-150.0,0.00027081,2]
[393497116,1762726249019,-262.26,0.00027081,2]
[393497117,1762726249029,-155.014,0.00027081,2]
[393497118,1762726249039,-560.0,0.0002713,2]
[393497119,1762726249050,-238.72338416,0.00027279,56]
[393497120,1762726249059,-151.0,0.00027397,31]
[393497121,1762726249070,-151.0,0.00027397,31]
[393497122,1762726249079,-151.0,0.00027397,30]
[393497123,1762726249088,-151.0,0.00027397,30]
[393497124,1762726249098,-1617.25869559,0.00027421,2]
[393497125,1762726249107,-2496.92550602,0.00027421,2]
[393497126,1762726249116,-660.0,0.00027678,2]
[393497127,1762726249127,-842.91,0.000277,2]
[393497128,1762726249136,-241.536368,0.00027802,2]
[393497129,1762726249146,-1100.0,0.00027814,2]
[393497130,1762726249155,-285.0,0.00027985,2]
[393497131,1762726249164,-760.0,0.00028226,2]
[393497132,1762726249174,-1155.76151907,0.00028338,4]
[393497133,1762726249183,-238.72338416,0.00028381,110]
[393497134,1762726249192,-5000.0,0.00028643,2]
[393497135,1762726249202,-860.0,0.00028774,2]
[393497136,1762726249211,-271.96,0.00028884,2]
[393497137,1762726249221,-960.0,0.00029322,2]
[393497138,1762726249230,-168.62,0.00029422,2]
[393497139,1762726249239,-2166.0,0.00029487,2]
[393497140,1762726249249,-628.0,0.00029487,2]
[393497141,1762726249258,-986.0,0.00029487,2]
[393497142,1762726249268,-413.0,0.00029487,2]
[393497143,1762726249277,-1060.0,0.0002987,2]
[393497144,1762726249287,-1155.76151907,0.00029903,5]
[393497145,1762726249296,-312.0,0.00029985,2]
[393497146,1762726249306,-3430.99,0.0003,7]
[393497147,1762726249316,-150.0,0.00030081,2]
[393497148,1762726249325,-150.0,0.00030081,2]
[393497149,1762726249334,-150.0,0.00030081,2]
[393497150,1762726249343,-150.0,0.00030081,2]
[393497151,1762726249353,-150.0,0.00030081,2]
[393497152,1762726249362,-150.0,0.00030081,2]
[393497153,1762726249372,-1160.0,0.00030418,2]
[393497154,1762726249381,-241.536368,0.00030705,2]
[393497155,1762726249391,-1260.0,0.00030966,2]
[393497156,1762726249400,-562.60724786,0.0003111,5]
[393497157,1762726249411,-5000.0,0.00031243,2]
[393497158,1762726249420,-407.93,0.00031291,2]
[393497159,1762726249430,-1155.76151907,0.00031468,6]
[393497160,1762726249439,-158.34,0.00031491,14]
[393497161,1762726249448,-842.91,0.000315,2]
[393497162,1762726249458,-666.60662878,0.00031514,2]
[393497163,1762726249467,-506.255,0.0003174,7]
[393497164,1762726249476,-151.0,0.0003184,31]
[393497165,1762726249486,-151.0,0.0003184,31]
[393497166,1762726249495,-151.0,0.0003184,31]
[393497167,1762726249504,-151.0,0.0003184,31]
[393497168,1762726249514,-151.0,0.0003184,31]
[393497169,1762726249523,-1617.25869559,0.0003184,2]
[393497170,1762726249532,-2496.92550602,0.0003184,2]
[393497171,1762726249541,-30845.5943134,0.0003185,2]
[393497172,1762726249551,-151.0,0.0003185,31]
[393497173,1762726249560,-151.0,0.0003185,31]
[393497174,1762726249570,-151.0,0.0003185,31]
[393497175,1762726249579,-151.0,0.0003185,31]
[393497176,1762726249588,-151.0,0.0003185,31]
[393497177,1762726249598,-151.0,0.0003185,7]
[393497178,1762726249607,-153.018556,0.0003185,31]
[393497179,1762726249616,-153.018556,0.0003185,31]
[393497180,1762726249625,-153.018556,0.0003185,31]
[393497181,1762726249634,-153.018556,0.0003185,31]
[393497182,1762726249643,-151.0,0.0003185,31]
[393497183,1762726249652,-151.0,0.0003185,31]
[393497184,1762726249661,-151.0,0.0003185,31]
[393497185,1762726249670,-151.0,0.0003185,31]
[393497186,1762726249679,-151.0,0.0003185,31]
[393497187,1762726249688,-151.0,0.0003185,31]
[393497188,1762726249697,-151.0,0.0003185,31]
[393497189,1762726249707,-151.0,0.0003185,31]
[393497190,1762726249717,-169.501594,0.0003185,30]
[393497191,1762726249727,-151.0,0.0003185,31]
[393497192,1762726249739,-151.0,0.0003185,31]
[393497193,1762726249749,-151.0,0.0003185,31]
[393497194,1762726249759,-151.0,0.0003185,31]
[393497195,1762726249768,-151.0,0.0003185,31]
[393497196,1762726249778,-151.0,0.0003185,31]
[393497197,1762726249790,-151.0,0.0003185,31]
[393497198,1762726249800,-151.0,0.0003185,31]
[393497199,1762726249809,-151.0,0.0003185,31]
[393497200,1762726249819,-151.0,0.0003185,31]
[393497201,1762726249828,-223.992199,0.0003185,31]
[393497202,1762726249838,-151.0,0.0003185,31]
[393497203,1762726249850,-151.0,0.0003185,31]
[393497204,1762726249860,-151.0,0.0003185,31]
[393497205,1762726249870,-151.0,0.0003185,31]
[393497206,1762726249880,-151.0,0.0003185,31]
[393497207,1762726249891,-151.0,0.0003185,31]
[393497208,1762726249901,-151.0,0.0003185,31]
[393497209,1762726249910,-339.0,0.00031985,2]
[393497210,1762726249919,-2166.0,0.00032487,2]
[393497211,1762726249931,-628.0,0.00032487,2]
[393497212,1762726249940,-986.0,0.00032487,2]
[393497213,1762726249949,-413.0,0.00032487,2]
[393497214,1762726249959,-500.0,0.00032876,2]
[393497215,1762726249968,-151.0,0.00032877,31]
[393497216,1762726249977,-151.0,0.00032877,31]
[393497217,1762726249986,-2348.51,0.00032877,10]
[393497218,1762726249994,-150.0,0.00032877,60]
[393497219,1762726250004,-1156.91728059,0.00033033,7]
[393497220,1762726250013,-150.0,0.00033081,2]
[393497221,1762726250090,-150.0,0.00033081,2]
[393497222,1762726250111,-150.0,0.00033081,2]
[393497223,1762726250120,-150.0,0.00033081,2]
[393497224,1762726250129,-150.0,0.00033081,2]
[393497225,1762726250139,-199.0,0.0003315,14]
[393497226,1762726250148,-522.165682,0.00033165,2]
[393497227,1762726250158,-171.22559643,0.000332,117]
[393497228,1762726250167,-3430.99,0.000336,14]
[393497229,1762726250176,-241.536368,0.00033608,2]
[393497230,1762726250185,-199.0,0.00033698,15]
[393497231,1762726250195,-543.91,0.00033698,2]
[393497232,1762726250204,-5000.0,0.00033843,3]
[393497233,1762726250214,-168.62,0.00033954,2]
[393497234,1762726250223,-366.0,0.00033985,120]
[393497235,1762726250233,-348.34426478,0.00034,3]
[393497236,1762726250241,-1617.25869559,0.0003419,2]
[393497237,1762726250250,-2496.92550602,0.0003419,2]
[393497238,1762726250259,-842.91,0.000342,14]
[393497239,1762726250268,-199.0,0.00034246,16]
[393497240,1762726250278,-199.0,0.00034794,17]
[393497241,1762726250289,-600.0,0.00034931,30]
[393497242,1762726250298,-999.0,0.00035068,120]
[393497243,1762726250308,-199.0,0.00035342,18]
[393497244,1762726250317,-2157.0,0.00035487,2]
[393497245,1762726250326,-628.0,0.00035487,2]
[393497246,1762726250336,-986.0,0.00035487,2]
[393497247,1762726250345,-413.0,0.00035487,2]
[393497248,1762726250355,-500.0,0.00035616,30]
[393497249,1762726250364,-209.18201385,0.00035616,2]
[393497250,1762726250373,-500.0,0.00035671,30]
[393497251,1762726250383,-500.0,0.00035726,30]
[393497252,1762726250392,-42.59531575,0.0003578,30]
[393497253,1762726250471,-457.40468425,0.0003578,30]
[393497254,1762726250483,-500.0,0.00035835,30]
[393497255,1762726250493,-500.0,0.0003589,30]
[393497256,1762726250504,-199.0,0.0003589,19]
[393497257,1762726250514,-500.0,0.00035945,30]
[393497258,1762726250524,-393.0,0.00035985,120]
[393497259,1762726250533,-500.0,0.00036,30]
[393497260,1762726250543,-297.22227407,0.00036054,30]
[393497261,1762726250552,-150.0,0.00036081,2]
[393497262,1762726250561,-150.0,0.00036081,2]
[393497263,1762726250571,-150.0,0.00036081,2]
[393497264,1762726250580,-150.0,0.00036081,2]
[393497265,1762726250589,-150.0,0.00036081,2]
[393497266,1762726250598,-679.89,0.00036105,2]
[393497267,1762726250608,-999.0,0.00036164,120]
[393497268,1762726250617,-267.46712327,0.0003637,16]
[393497269,1762726250625,-199.0,0.00036438,20]
[393497270,1762726250635,-5000.0,0.00036443,3]
[393497271,1762726250643,-139.51591841,0.0003651,2]
[393497272,1762726355365,473.14386316,0.000178,2]
[393497273,1762726401578,1372.6315018,0.000178,2]
[393497274,1762726414692,250.0,0.000178,2]
[393497275,1762726452249,5000.0,0.00017875,2]
[393497276,1762726474609,367.64639154,0.00017501,2]
[393497277,1762726624641,10000.01,0.00016882,2]
[393497278,1762726624665,14297.8930501,0.00016882,2]
[393497279,1762726632687,1416.43008776,0.00017675,2]
[393497280,1762726648237,5000.0,0.00017501,2]
[393497281,1762726670497,330.8457417,0.00016879,2]
[393497282,1762726671292,3537.54925509,0.00017501,2]
[393497284,1762726685820,150.0,0.000169,2]
[393497285,1762726696620,150.0,0.000169,2]
[393497286,1762726707896,150.0,0.000169,2]
[393497287,1762726718124,150.0,0.000169,2]
[393497289,1762726847314,475.896476,0.00013699,2]
[393497290,1762726857126,-300.04218555,0.00017685,2]
[393497291,1762726872073,-173.67237718,0.00017685,2]
[393497292,1762726874143,-305.36233915,0.00017685,2]
[393497293,1762726880333,-322.17995224,0.00017685,2]
[393497294,1762726881779,809.575129,0.00016848,2]
[393497295,1762726882586,-155.50179157,0.00017685,2]
[393497296,1762726885226,-223.15431032,0.00017685,2]
[393497297,1762726902769,-300.0,0.00017685,2]
[393497298,1762726904330,-213.3638526,0.00017685,2]
[393497299,1762726908699,-423.30145962,0.00017685,2]
[393497300,1762726910892,-272.48776781,0.00017685,2]
[393497301,1762726913522,-194.71574966,0.00017685,2]
[393497302,1762726915625,-180.60251544,0.00017685,2]
[393497304,1762726932073,-354.461975,0.00017685,2]
[393497308,1762726934863,-162.21421607,0.00017685,2]
[393497309,1762726936616,-185.48865006,0.00017685,2]
[393497310,1762726940023,-200.81303965,0.00017685,2]
[393497311,1762726947892,8714.538395,0.00016849,2]
[393497312,1762726947914,10000.01,0.00016849,2]
[393497313,1762726947936,529.0053212,0.00016849,2]
[393497317,1762727157141,-396.63467872,0.00017685,2]
[393497318,1762727163917,-183.04532491,0.00017685,2]
[393497319,1762727166959,-151.0,0.00017685,2]
[393497320,1762727168537,-151.0,0.00017685,2]
[393497321,1762727170667,208.379363,0.00016859,2]
[393497322,1762727171735,-31.26974469,0.00017685,2]
[393497323,1762727171757,-119.73025531,0.00017685,2]
[393497324,1762727276909,782.1745761,0.00016876,2]
[393497325,1762727285532,422.06585332,0.00010618,2]
[393497326,1762727287270,8795.76957058,0.000125,2]
[393497327,1762727287294,182.1745761,0.000125,2]
[393497328,1762727305306,9817.8354239,0.00017,2]
[393497329,1762727305330,10000.01,0.00017,2]
[393497330,1762727305354,10000.01,0.00017,2]
[393497331,1762727305377,7341.62608415,0.00017,2]
[393497332,1762727313725,214.22843292,0.00016,2]
[393497333,1762727316690,2444.15548293,0.0001,2]
[393497334,1762727316715,7555.85451707,0.0001,2]
[393497335,1762727317693,2444.15548293,0.00017675,2]
[393497336,1762727317721,2555.84451707,0.00017675,2]
[393497337,1762727339871,1543.28062781,0.00017501,2]
[393497345,1762727367700,-30.26974469,0.00017685,2]
[393497346,1762727367721,-213.92952452,0.00017685,2]
[393497347,1762727371430,-183.30970447,0.00017685,2]
[393497348,1762727373600,-272.9651991,0.00017685,2]
[393497349,1762727376332,-151.54175762,0.00017685,2]
[393497350,1762727380144,-35.25381429,0.00017685,2]
[393497351,1762727380168,-229.76918281,0.00017781,2]
[393497352,1762727383943,183.30970447,0.00017501,2]
[393497353,1762727386163,-151.0,0.00017779,2]
[393497354,1762727391849,284.26092354,0.00017501,2]
[393497383,1762727431880,-2046.98938841,0.00017779,2]
[393497384,1762727431890,-862.0,0.00017779,2]
[393497385,1762727431900,-307.36160812,0.00017781,2]
[393497386,1762727431911,-537.13079091,0.00017786,2]
[393497387,1762727431920,-537.13079091,0.00017791,2]
[393497388,1762727431931,-537.13079091,0.00017795,2]
[393497389,1762727431941,-593.00697516,0.000178,2]
[393497390,1762727431951,-537.13079091,0.000178,2]
[393497391,1762727431960,-1200.0,0.00017872,2]
[393497392,1762727431969,-300.0,0.00017872,2]
[393497393,1762727431978,-300.0,0.00017872,2]
[393497394,1762727431987,-501.60103285,0.00017873,2]
[393497395,1762727431997,-500.0,0.00017873,2]
[393497396,1762727432006,-500.0,0.00017873,2]
[393497397,1762727432015,-500.0,0.00017873,2]
[393497398,1762727432024,-50000.0,0.00017873,2]
[393497399,1762727432033,-151.0,0.00017874,2]
[393497400,1762727432042,-151.0,0.00017874,2]
[393497401,1762727432052,-151.0,0.00017874,2]
[393497402,1762727432061,-151.0,0.00017874,2]
[393497403,1762727432071,-151.0,0.00017874,2]
[393497404,1762727432081,-151.0,0.00017874,2]
[393497405,1762727432090,-151.0,0.00017874,2]
[393497406,1762727432100,-151.0,0.00017874,2]
[393497407,1762727432111,-151.0,0.00017874,2]
[393497408,1762727432121,-265.0229971,0.00017874,2]
[393497409,1762727432130,-407.72175275,0.00017878,2]
[393497410,1762727432140,-500.0,0.00017879,2]
[393497411,1762727432150,-500.0,0.00017879,2]
[393497412,1762727432159,-500.0,0.00017879,2]
[393497413,1762727432169,-500.0,0.00017879,2]
[393497414,1762727432182,-500.0,0.00017879,2]
[393497415,1762727432196,-500.0,0.00017879,2]
[393497416,1762727432207,-500.0,0.00017879,2]
[393497417,1762727432216,-500.0,0.00017879,2]
[393497418,1762727432226,-179.96990674,0.00017879,2]
[393497419,1762727432238,-500.0,0.00017879,2]
[393497420,1762727432248,-500.0,0.00017879,2]
[393497421,1762727432257,-500.0,0.00017879,2]
[393497422,1762727432266,-500.0,0.00017879,2]
[393497423,1762727432276,-500.0,0.00017879,2]
[393497424,1762727432286,-500.0,0.00017879,2]
[393497425,1762727432295,-500.0,0.00017879,2]
[393497426,1762727432306,-487.40496894,0.00017879,2]
[393497427,1762727432315,-500.0,0.00017879,2]
[393497428,1762727432324,-500.0,0.00017879,2]
[393497429,1762727432334,-500.0,0.00017879,2]
[393497430,1762727432344,-500.0,0.00017879,2]
[393497431,1762727432353,-500.0,0.00017879,2]
[393497432,1762727432366,-500.0,0.00017879,2]
[393497433,1762727432376,-500.0,0.00017879,2]
[393497434,1762727432385,-500.0,0.00017879,2]
[393497435,1762727432395,-500.0,0.00017879,2]
[393497436,1762727432404,-500.0,0.00017879,2]
[393497437,1762727432414,-500.0,0.00017879,2]
[393497438,1762727432423,-500.0,0.00017879,2]
[393497439,1762727432432,-500.0,0.00017879,2]
[393497440,1762727432442,-500.0,0.00017879,2]
[393497441,1762727432451,-500.0,0.00017879,2]
[393497442,1762727432460,-500.0,0.00017879,2]
[393497443,1762727432470,-500.0,0.00017879,2]
[393497444,1762727432482,-500.0,0.00017879,2]
[393497445,1762727432491,-500.0,0.00017879,2]
[393497446,1762727432501,-500.0,0.00017879,2]
[393497447,1762727432510,-500.0,0.00017879,2]
[393497448,1762727432520,-500.0,0.00017879,2]
[393497449,1762727432529,-500.0,0.00017879,2]
[393497450,1762727432540,-500.0,0.00017879,2]
[393497451,1762727432551,-500.0,0.00017879,2]
[393497452,1762727432559,-500.0,0.00017879,2]
[393497453,1762727432569,-500.0,0.00017879,2]
[393497454,1762727432578,-500.0,0.00017879,2]
[393497455,1762727432587,-500.0,0.00017879,2]
[393497456,1762727432596,-500.0,0.00017879,2]
[393497457,1762727432606,-500.0,0.00017879,2]
[393497458,1762727432615,-500.0,0.00017879,2]
[393497459,1762727432624,-500.0,0.00017879,2]
[393497460,1762727432633,-500.0,0.00017879,2]
[393497461,1762727432642,-500.0,0.00017879,2]
[393497462,1762727432651,-500.0,0.00017879,2]
[393497463,1762727432660,-500.0,0.00017879,2]
[393497464,1762727432669,-500.0,0.00017879,2]
[393497465,1762727432678,-500.0,0.00017879,2]
[393497466,1762727432687,-500.0,0.00017879,2]
[393497467,1762727432696,-500.0,0.00017879,2]
[393497468,1762727432705,-500.0,0.00017879,2]
[393497469,1762727432714,-500.0,0.00017879,2]
[393497470,1762727432723,-500.0,0.00017879,2]
[393497471,1762727432733,-500.0,0.00017879,2]
[393497472,1762727432743,-500.0,0.00017879,2]
[393497473,1762727432754,-500.0,0.00017879,2]
[393497474,1762727432763,-500.0,0.00017879,2]
[393497475,1762727432772,-500.0,0.00017879,2]
[393497476,1762727432781,-500.0,0.00017879,2]
[393497477,1762727432791,-500.0,0.00017879,2]
[393497478,1762727432801,-500.0,0.00017879,2]
[393497479,1762727432810,-500.0,0.00017879,2]
[393497480,1762727432820,-300.0,0.00017879,2]
[393497481,1762727432829,-500.0,0.00017879,2]
[393497482,1762727432838,-500.0,0.00017879,2]
[393497483,1762727432848,-500.0,0.00017879,2]
[393497484,1762727432857,-500.0,0.00017879,2]
[393497485,1762727432867,-500.0,0.00017879,2]
[393497486,1762727432876,-500.0,0.00017879,2]
[393497487,1762727432886,-500.0,0.00017879,2]
[393497488,1762727432895,-500.0,0.00017879,2]
[393497489,1762727432905,-153.36457161,0.00017879,2]
[393497490,1762727432916,-500.0,0.00017879,2]
[393497491,1762727432925,-500.0,0.00017879,2]
[393497492,1762727432935,-500.0,0.00017879,2]
[393497493,1762727432944,-500.0,0.00017879,2]
[393497494,1762727432953,-500.0,0.00017879,2]
[393497495,1762727432962,-500.0,0.00017879,2]
[393497496,1762727432972,-500.0,0.00017879,2]
[393497497,1762727432981,-500.0,0.00017879,2]
[393497498,1762727432990,-500.0,0.00017879,2]
[393497499,1762727432999,-500.0,0.00017879,2]
[393497500,1762727433008,-500.0,0.00017879,2]
[393497501,1762727433017,-500.0,0.00017879,2]
[393497502,1762727433026,-500.0,0.00017879,2]
[393497503,1762727433035,-500.0,0.00017879,2]
[393497504,1762727433044,-500.0,0.00017879,2]
[393497505,1762727433054,-500.0,0.00017879,2]
[393497506,1762727433063,-500.0,0.00017879,2]
[393497507,1762727433072,-500.0,0.00017879,2]
[393497508,1762727433081,-500.0,0.00017879,2]
[393497509,1762727433091,-598.73500553,0.00017879,2]
[393497510,1762727433100,-500.0,0.00017879,2]
[393497511,1762727433109,-500.0,0.00017879,2]
[393497512,1762727433117,-500.0,0.00017879,2]
[393497513,1762727433125,-500.0,0.00017879,2]
[393497514,1762727433218,-500.0,0.00017879,2]
[393497515,1762727433229,-500.0,0.00017879,2]
[393497516,1762727433238,-500.0,0.00017879,2]
[393497517,1762727433247,-500.0,0.00017879,2]
[393497518,1762727433256,-499.99999999,0.00017879,2]
[393497519,1762727433267,-500.0,0.00017879,2]
[393497520,1762727433279,-500.0,0.00017879,2]
[393497521,1762727433289,-500.0,0.00017879,2]
[393497522,1762727433301,-290.083,0.0001788,2]
[393497523,1762727433311,-500.0,0.00017882,2]
[393497524,1762727433320,-500.0,0.00017884,2]
[393497525,1762727433329,-685000.0,0.00017885,2]
[393497526,1762727433339,-171.7,0.000179,2]
[393497527,1762727433349,-574.22804463,0.0001799,2]
[393497528,1762727433359,-240.0,0.00018,2]
[393497529,1762727433369,-56049.11239444,0.00018,2]
[393497553,1762727437531,-1618.48555285,0.00018,2]
[393497554,1762727437543,-2865.89370858,0.00018,2]
[393497555,1762727437589,-600.0,0.00018,2]
[393497556,1762727437600,-663.86918663,0.00018,2]
[393497557,1762727437610,-348.40551152,0.00018172,2]
[393497558,1762727437619,-627.12992074,0.00018172,2]
[393497559,1762727437628,-1114.89763686,0.00018181,2]
[393497560,1762727437637,-600.0,0.00018242,2]
[393497561,1762727437646,-300.0,0.00018344,2]
[393497562,1762727437655,-300.0,0.00018344,2]
[393497563,1762727437664,-300.0,0.00018344,2]
[393497564,1762727437674,-245.69774425,0.00018344,2]
[393497580,1762727439995,-54.30225575,0.00018344,2]
[393497581,1762727440006,-300.0,0.00018344,2]
[393497582,1762727440015,-300.0,0.00018344,2]
[393497583,1762727440024,-300.0,0.00018344,2]
[393497584,1762727440034,-300.0,0.00018344,2]
[393497585,1762727440053,-300.0,0.00018344,2]
[393497586,1762727440064,-300.0,0.00018344,2]
[393497587,1762727440074,-300.0,0.00018344,2]
[393497588,1762727440084,-300.0,0.00018344,2]
[393497589,1762727440094,-300.0,0.00018344,2]
[393497590,1762727440104,-300.0,0.00018344,2]